fUSD/lending_fUSD_20260512
["ID","MTS","AMOUNT","RATE_DAILY","PERIOD"]
[422089083,1778562643000,-4160.01402013,0.000255,2]
[422089089,1778562643000,-299.99,0.00025786,12]
[422089172,1778562644000,-2298.98,0.00029612,30]
[422089163,1778562644000,-5000.0,0.00028932,2]
[422089168,1778562644000,-166.66,0.00029381,30]
[422089160,1778562644000,-406.9769,0.00028931,2]
[422089166,1778562644000,-503.0,0.00029031,6]
[422089171,1778562644000,-11502.1472536,0.00029405,2]
[422089158,1778562644000,-1082.9753,0.00028931,2]
[422089150,1778562644000,-12470.58375689,0.00028923,2]
[422089154,1778562644000,-1500.1628033,0.00028924,2]
[422089152,1778562644000,-81306.9126297,0.00028924,2]
[422089156,1778562644000,-2298.98,0.0002893,7]
[422089146,1778562644000,-500.0,0.00028775,2]
[422089139,1778562644000,-2298.98,0.00028247,2]
[422089174,1778562644000,-3448.48,0.00029621,2]
[422089141,1778562644000,-5987.95,0.00028536,60]
[422089148,1778562644000,-3448.48,0.00028794,30]
[422089176,1778562644000,-543.81,0.00029942,60]
[422089144,1778562644000,-1299.61,0.00028763,2]
[422089188,1778562644000,-2298.98,0.00030294,2]
[422089180,1778562644000,-1000.0,0.0003,120]
[422089256,1778562644000,-1441.83970756,0.00030976,7]
[422089253,1778562644000,-295.71603005,0.00030976,7]
[422089251,1778562644000,-323.28396995,0.00030928,2]
[422089231,1778562644000,-166.66,0.00030618,30]
[422089229,1778562644000,-491.54492285,0.00030566,2]
[422089237,1778562644000,-722.8955016,0.00030928,2]
[422089234,1778562644000,-732.75052845,0.00030928,2]
[422089164,1778562644000,-1494.184881,0.00029,2]
[422089199,1778562644000,-168.37,0.00030553,2]
[422089197,1778562644000,-40.88615437,0.00030542,2]
[422089190,1778562644000,-3448.48,0.00030448,7]
[422089192,1778562644000,-109.11384563,0.00030542,2]
[422089182,1778562644000,-220.59,0.00030117,2]
[422089187,1778562644000,-671.35443136,0.00030137,120]
[422089178,1778562644000,-166.66,0.0003,30]
[422089184,1778562644000,-5006.29278813,0.00030137,120]
[422089201,1778562644000,-804.95507715,0.00030566,2]
[422089345,1778562646000,-162.29,0.00031855,2]
[422089344,1778562646000,-166.66,0.00031855,30]
[422089342,1778562646000,-2298.98,0.00031659,30]
[422089343,1778562646000,-197.91,0.00031659,7]
[422089341,1778562646000,-243.0,0.0003139,120]
[422089331,1778562646000,-166.66,0.00031237,30]
[422089330,1778562646000,-182.25,0.00031066,120]
[422089333,1778562646000,-767.9779999,0.00031275,30]
[422089327,1778562646000,-221.03,0.00026199,2]
[422089329,1778562646000,-561.42426239,0.00030976,7]
[422089328,1778562646000,-165.78,0.00027397,7]
[422089326,1778562646000,-189.46106482,0.00025428,2]
[422089325,1778562646000,-165.78,0.00024658,2]
[422089332,1778562646000,-1743.23068391,0.00031275,30]
[422089348,1778562646000,-1000.0,0.00032,120]
[422089340,1778562646000,-937.27131619,0.00031275,30]
[422089346,1778562646000,-1300.0,0.00032,120]
[422089349,1778562646000,-1000.0,0.00032,120]
[422089361,1778562646000,-2193.85470039,0.00033,5]
[422089364,1778562646000,-555.2039331,0.00033023,7]
[422089362,1778562646000,-3335.14529961,0.00033,5]
[422089363,1778562646000,-330.056622,0.00033023,7]
[422089360,1778562646000,-5149.61484915,0.00033,30]
[422089358,1778562646000,-1000.0,0.00033,30]
[422089347,1778562646000,-1000.0,0.00032,120]
[422089356,1778562646000,-1889.76999696,0.0003293,7]
[422089353,1778562646000,-2298.98,0.00032341,2]
[422089355,1778562646000,-1558.71000304,0.0003293,7]
[422089352,1778562646000,-3448.48,0.00032102,2]
[422089351,1778562646000,-4000.0,0.00032,120]
[422089354,1778562646000,-166.66,0.00032474,30]
[422089357,1778562646000,-3294.67368547,0.00033,30]
[422089350,1778562646000,-1000.0,0.00032,120]
[422089372,1778562699000,-263.39072739,0.000107,2]
[422089373,1778562722000,1207.34495597,0.00026837,120]
[422089374,1778562724000,500.0,0.00026837,120]
[422089383,1778562743000,500.0,0.00010699,2]
[422089377,1778562743000,500.0,0.00010699,2]
[422089376,1778562743000,500.0,0.00010699,2]
[422089379,1778562743000,500.0,0.00010699,2]
[422089375,1778562743000,500.0,0.00010699,2]
[422089380,1778562743000,274.39765119,0.00010699,2]
[422089382,1778562743000,500.0,0.00010699,2]
[422089378,1778562743000,500.0,0.00010699,2]
[422089381,1778562743000,500.0,0.00010699,2]
[422089384,1778562760000,315.27086063,0.00010699,2]
[422089387,1778562769000,530.90684778,0.00010699,2]
[422089386,1778562769000,500.0,0.00010699,2]
[422089385,1778562769000,500.0,0.00010699,2]
[422089388,1778562792000,-157.0,0.0002,2]
[422089390,1778562958000,1159.59,0.00027397,120]
[422089389,1778562958000,-157.0,0.00021,2]
[422089391,1778562958000,-157.0,0.0002,2]
[422089392,1778562958000,-107.0,0.0002,2]
[422089394,1778562958000,-157.0,0.00021,2]
[422089395,1778562958000,-57.0,0.00021,2]
[422089393,1778562958000,-50.0,0.00021,2]
[422089397,1778562960000,-71.71036066,0.00018435,2]
[422089396,1778562960000,-157.0,0.00018435,2]
[422089398,1778563030000,547.00704242,0.000107,2]
[422089400,1778563475000,-250.0,0.00014,2]
[422089402,1778563475000,-150.0,0.00014139,2]
[422089404,1778563475000,-150.0,0.00014279,2]
[422089406,1778563475000,-150.0,0.00014559,2]
[422089403,1778563475000,-150.0,0.00014279,2]
[422089405,1778563475000,-150.0,0.00014419,2]
[422089407,1778563475000,-1514.051,0.00014645,2]
[422089409,1778563475000,-226.35,0.00014746,2]
[422089401,1778563475000,-250.0,0.00014069,2]
[422089408,1778563475000,-287.0,0.00014699,2]
[422089410,1778563475000,-250.0,0.000154,2]
[422089417,1778563475000,-39.84435611,0.00018845,2]
[422089414,1778563475000,-226.35,0.00016983,2]
[422089416,1778563475000,-226.35,0.00018474,2]
[422089412,1778563475000,-226.35,0.00015491,2]
[422089413,1778563475000,-226.35,0.00016237,2]
[422089411,1778563475000,-301.00464389,0.000154,2]
[422089415,1778563475000,-226.35,0.00017728,2]
[422089418,1778563539000,-35953.08707986,0.000175,2]
[422089420,1778563699000,555.0,0.00027397,120]
[422089421,1778563729000,152.19,0.00025589,120]
[422089422,1778563783000,4216.0,0.0002739,120]
[422089423,1778563794000,4000.0,0.0002739,120]
[422089440,1778563832000,-151.0,0.00019922,2]
[422089439,1778563832000,-151.0,0.00019922,2]
[422089438,1778563832000,-2500.0,0.0001925,2]
[422089436,1778563832000,-226.35,0.00019219,2]
[422089434,1778563832000,-113.24564389,0.00018845,2]
[422089435,1778563832000,-1680.0,0.00019197,2]
[422089430,1778563832000,-300.0,0.00017499,2]
[422089437,1778563832000,-2500.0,0.00019249,2]
[422089433,1778563832000,-10614.00802294,0.000175,2]
[422089431,1778563832000,-179.27379233,0.000175,2]
[422089428,1778563832000,-250.0,0.00017499,2]
[422089429,1778563832000,-1200.0,0.00017499,2]
[422089432,1778563832000,-353.8945,0.000175,2]
[422089441,1778563832000,-151.0,0.00019922,2]
[422089443,1778563832000,-151.0,0.00019922,2]
[422089444,1778563832000,-219.01463362,0.00019922,2]
[422089462,1778563832000,-5533.0,0.00020688,2]
[422089460,1778563832000,-1820.0074275,0.00020688,2]
[422089455,1778563832000,-492.41777302,0.00020688,2]
[422089453,1778563832000,-348.50366075,0.00020688,2]
[422089452,1778563832000,-61222.4188169,0.00020688,2]
[422089450,1778563832000,-476.84538346,0.00020688,2]
[422089458,1778563832000,-824.83,0.00020688,2]
[422089449,1778563832000,-648.27671894,0.00020688,2]
[422089448,1778563832000,-838.0,0.00020687,2]
[422089447,1778563832000,-270.0,0.0002,2]
[422089445,1778563832000,-226.35,0.00019965,2]
[422089442,1778563832000,-151.0,0.00019922,2]
[422089446,1778563832000,-158.0,0.0002,2]
[422089451,1778563832000,-23283.33611141,0.00020688,2]
[422089499,1778563838000,-226.35,0.00025185,2]
[422089496,1778563838000,-270.0,0.00025,2]
[422089500,1778563838000,-200.0,0.00025291,2]
[422089492,1778563838000,-517.0,0.00024397,2]
[422089491,1778563838000,-270.0,0.00024,2]
[422089497,1778563838000,-16408.22,0.00025054,2]
[422089498,1778563838000,-214.86625456,0.00025126,2]
[422089493,1778563838000,-226.35,0.00024439,2]
[422089494,1778563838000,-175.05,0.0002449,2]
[422089495,1778563838000,-543.64,0.00024643,2]
[422089489,1778563838000,-150.0,0.00023652,2]
[422089490,1778563838000,-226.35,0.00023693,2]
[422089487,1778563838000,-228.31,0.0002318,2]
[422089480,1778563838000,-226.35,0.00021456,2]
[422089484,1778563838000,-226.35,0.00022948,2]
[422089483,1778563838000,-226.35,0.00022202,2]
[422089485,1778563838000,-270.0,0.00023,2]
[422089486,1778563838000,-3292.0,0.00023105,2]
[422089481,1778563838000,-168.0,0.00022,2]
[422089482,1778563838000,-270.0,0.00022,2]
[422089501,1778563838000,-165.83,0.000253,30]
[422089478,1778563838000,-270.0,0.00021,2]
[422089476,1778563838000,-198.6858,0.000209,2]
[422089477,1778563838000,-158.0,0.00021,2]
[422089475,1778563838000,-222.0,0.00020854,2]
[422089474,1778563838000,-226.35,0.00020711,2]
[422089473,1778563838000,-20040.26142982,0.00020688,2]
[422089488,1778563838000,-160.1,0.0002351,2]
[422089502,1778563838000,-206.92351009,0.00025347,2]
[422089479,1778563838000,-2351.0,0.00021061,2]
[422089503,1778563838000,-810.18031278,0.00025347,2]
[422089529,1778563838000,-4112.50925139,0.00027397,2]
[422089530,1778563838000,-3216.5170958,0.00027397,2]
[422089527,1778563838000,-1891.39,0.00027297,2]
[422089528,1778563838000,-299.99,0.00027397,12]
[422089526,1778563838000,-165.83,0.00027297,30]
[422089531,1778563838000,-341.50517263,0.00027397,2]
[422089524,1778563838000,-152.0,0.00026898,7]
[422089519,1778563838000,-150.0,0.00026625,2]
[422089525,1778563838000,-152.0,0.00026993,7]
[422089522,1778563838000,-226.35,0.00026676,2]
[422089518,1778563838000,-2171.39,0.00026581,2]
[422089523,1778563838000,-4198.0,0.000268,5]
[422089516,1778563838000,-152.0,0.00026419,7]
[422089520,1778563838000,-165.83,0.00026632,30]
[422089517,1778563838000,-187.6,0.00026466,2]
[422089521,1778563838000,-1891.39,0.00026632,2]
[422089515,1778563838000,-913.92660121,0.00026053,2]
[422089514,1778563838000,-1150.4,0.00026044,2]
[422089513,1778563838000,-166.24,0.00025992,2]
[422089512,1778563838000,-165.83,0.00025966,30]
[422089510,1778563838000,-5019.42,0.00025702,2]
[422089511,1778563838000,-226.35,0.0002593,2]
[422089508,1778563838000,-1262.25090096,0.00025635,2]
[422089509,1778563838000,-1852.42,0.00025675,2]
[422089505,1778563838000,-28.33227392,0.00025562,2]
[422089507,1778563838000,-737.74909904,0.00025635,2]
[422089504,1778563838000,-322.89617713,0.00025347,2]
[422089532,1778563838000,-805.6,0.00027397,2]
[422089506,1778563838000,-171.66772608,0.00025562,2]
[422089538,1778563840000,-1198.04289802,0.00027397,2]
[422089539,1778563840000,-534.0,0.00027397,2]
[422089541,1778563841000,-8753.94558216,0.00027397,2]
[422089566,1778563841000,-500.0,0.00028575,2]
[422089565,1778563841000,-1096.64989215,0.00028548,2]
[422089564,1778563841000,-1096.64989215,0.00028524,2]
[422089563,1778563841000,-1096.64989215,0.0002851,2]
[422089560,1778563841000,-226.35,0.00028167,2]
[422089570,1778563841000,-2335.1,0.0002866,10]
[422089555,1778563841000,-165.83,0.00027963,30]
[422089558,1778563841000,-1096.64989215,0.00028072,2]
[422089562,1778563841000,-1096.64989215,0.00028386,2]
[422089561,1778563841000,-151.0,0.00028267,2]
[422089554,1778563841000,-1096.64989215,0.00027916,2]
[422089557,1778563841000,-1096.64989215,0.00028059,2]
[422089556,1778563841000,-1891.39,0.00027963,2]
[422089552,1778563841000,-509.70647062,0.000278,7]
[422089543,1778563841000,-352.74,0.00027397,2]
[422089547,1778563841000,-1125.1221024,0.00027527,2]
[422089550,1778563841000,-547.25368227,0.00027687,2]
[422089551,1778563841000,-547.25368227,0.0002775,2]
[422089549,1778563841000,-795.36413373,0.00027684,2]
[422089548,1778563841000,-113564.7752194,0.00027527,2]
[422089546,1778563841000,-1945.91,0.00027517,10]
[422089545,1778563841000,-226.35,0.00027422,2]
[422089544,1778563841000,-4142.47,0.00027397,2]
[422089542,1778563841000,-150.99,0.00027397,2]
[422089540,1778563841000,-500.0,0.00025562,2]
[422089553,1778563841000,-1096.64989215,0.00027907,2]
[422089574,1778563841000,-1096.64989215,0.00028786,2]
[422089559,1778563841000,-1096.64989215,0.00028074,2]
[422089568,1778563841000,-1096.64989215,0.00028642,2]
[422089571,1778563841000,-2802.12,0.00028665,10]
[422089594,1778563841000,-1096.64989215,0.00029531,2]
[422089595,1778563841000,-1096.64989215,0.00029634,2]
[422089596,1778563841000,-161.13,0.00029663,2]
[422089593,1778563841000,-1096.64989215,0.00029523,2]
[422089592,1778563841000,-1096.64989215,0.00029459,2]
[422089590,1778563841000,-1891.39,0.00029295,2]
[422089591,1778563841000,-1096.64989215,0.00029403,2]
[422089589,1778563841000,-1096.64989215,0.00029264,2]
[422089588,1778563841000,-1096.64989215,0.0002925,2]
[422089581,1778563841000,-1096.64989215,0.00028973,2]
[422089582,1778563841000,-1096.64989215,0.00028984,2]
[422089583,1778563841000,-1096.64989215,0.00029028,2]
[422089597,1778563841000,-222.8009139,0.00029751,2]
[422089579,1778563841000,-226.35,0.00028913,2]
[422089580,1778563841000,-1096.64989215,0.00028921,2]
[422089567,1778563841000,-1891.39,0.00028629,2]
[422089572,1778563841000,-1096.64989215,0.0002867,2]
[422089573,1778563841000,-517.0,0.00028674,6]
[422089576,1778563841000,-1096.64989215,0.00028849,2]
[422089586,1778563841000,-80463.27,0.00029186,2]
[422089569,1778563841000,-1096.64989215,0.00028659,2]
[422089587,1778563841000,-1096.64989215,0.00029189,2]
[422089577,1778563841000,-1096.64989215,0.00028893,2]
[422089578,1778563841000,-1469.44,0.00028911,10]
[422089584,1778563841000,-2500.0,0.00029086,2]
[422089585,1778563841000,-1101.5212383,0.00029089,2]
[422089575,1778563841000,-2000.0,0.0002884,120]
[422089624,1778563842000,-150.0,0.00030856,7]
[422089623,1778563842000,-180.35297387,0.000308,2]
[422089625,1778563842000,-150.0,0.00030941,7]
[422089626,1778563842000,-1101.52123823,0.00031103,2]
[422089628,1778563842000,-150.0,0.00031162,7]
[422089632,1778563842000,-152.0,0.00031591,30]
[422089629,1778563842000,-150.0,0.00031366,7]
[422089630,1778563842000,-150.0,0.00031493,7]
[422089627,1778563842000,-150.0,0.00031111,7]
[422089636,1778563842000,-150.0,0.00031621,7]
[422089634,1778563842000,-158.0,0.00031616,30]
[422089638,1778563842000,-150.0,0.00031876,7]
[422089639,1778563842000,-2000.0,0.00032044,120]
[422089633,1778563842000,-159.51488147,0.00031591,30]
[422089635,1778563842000,-270.0,0.00031616,30]
[422089640,1778563842000,-150.0,0.00032046,7]
[422089641,1778563842000,-1101.52123823,0.0003211,2]
[422089637,1778563842000,-150.0,0.00031825,7]
[422089619,1778563842000,-153.0,0.00030616,30]
[422089631,1778563842000,-150.0,0.00031493,7]
[422089613,1778563842000,-5000.0,0.00030435,2]
[422089604,1778563842000,-150.0,0.00029836,7]
[422089620,1778563842000,-158.0,0.00030616,30]
[422089643,1778563842000,-151.0,0.0003221,5]
[422089599,1778563842000,-150.0,0.00029836,7]
[422089598,1778563842000,-150.0,0.00029836,7]
[422089601,1778563842000,-150.0,0.00029836,7]
[422089611,1778563842000,-150.0,0.00030346,7]
[422089603,1778563842000,-150.0,0.00029836,7]
[422089600,1778563842000,-150.79014724,0.00029836,7]
[422089602,1778563842000,-150.0,0.00029836,7]
[422089609,1778563842000,-151.0,0.00030239,2]
[422089618,1778563842000,-150.0,0.00030601,7]
[422089607,1778563842000,-150.0,0.00030091,7]
[422089608,1778563842000,-1101.52123823,0.00030096,2]
[422089610,1778563842000,-166.24,0.00030282,2]
[422089606,1778563842000,-150.0,0.00029836,7]
[422089615,1778563842000,-165.0,0.00030542,2]
[422089617,1778563842000,-151.0,0.00030591,30]
[422089614,1778563842000,-150.0,0.00030499,7]
[422089616,1778563842000,-152.0,0.00030591,30]
[422089622,1778563842000,-180.35297387,0.000308,2]
[422089621,1778563842000,-270.0,0.00030616,30]
[422089605,1778563842000,-150.0,0.00029836,7]
[422089642,1778563842000,-150.0,0.00032131,7]
[422089612,1778563842000,-41923.67,0.00030368,2]
[422089655,1778563842000,-200.0,0.00033022,7]
[422089671,1778563842000,-173.81639782,0.00033073,2]
[422089670,1778563842000,-200.0,0.00033023,2]
[422089673,1778563842000,-401.26597545,0.00033073,2]
[422089675,1778563842000,-189.09721442,0.00033073,2]
[422089676,1778563842000,-5600.23367024,0.00033073,2]
[422089689,1778563842000,-60369.96852238,0.00033173,6]
[422089674,1778563842000,-184.47475161,0.00033073,2]
[422089681,1778563842000,-150.00000001,0.00033151,7]
[422089682,1778563842000,-150.0,0.00033151,7]
[422089672,1778563842000,-323.76931184,0.00033073,2]
[422089678,1778563842000,-1101.52123823,0.00033117,2]
[422089677,1778563842000,-964.2922513,0.00033073,2]
[422089679,1778563842000,-150.0,0.00033151,7]
[422089684,1778563842000,-150.0,0.00033151,7]
[422089683,1778563842000,-150.0,0.00033151,7]
[422089686,1778563842000,-500.0,0.00033173,5]
[422089685,1778563842000,-178.3567181,0.00033163,2]
[422089688,1778563842000,-150.0,0.00033173,5]
[422089687,1778563842000,-533.87915349,0.00033173,5]
[422089690,1778563842000,-1118.48122722,0.00033173,6]
[422089680,1778563842000,-150.0,0.00033151,7]
[422089669,1778563842000,-945.5731549,0.00033023,7]
[422089645,1778563842000,-384.09,0.00032466,120]
[422089665,1778563842000,-166.77187727,0.00033022,7]
[422089644,1778563842000,-150.0,0.00032386,7]
[422089647,1778563842000,-152.0,0.00032591,30]
[422089651,1778563842000,-152.0,0.00032775,3]
[422089652,1778563842000,-150.0,0.00032896,7]
[422089650,1778563842000,-150.0,0.00032641,7]
[422089646,1778563842000,-150.0,0.00032488,7]
[422089649,1778563842000,-270.0,0.00032616,30]
[422089648,1778563842000,-158.0,0.00032616,30]
[422089654,1778563842000,-200.0,0.00033022,7]
[422089657,1778563842000,-151.0,0.00033022,7]
[422089653,1778563842000,-517.0,0.00032952,10]
[422089667,1778563842000,-256.73781653,0.00033023,7]
[422089658,1778563842000,-200.0,0.00033022,7]
[422089659,1778563842000,-286.47749038,0.00033022,7]
[422089666,1778563842000,-207.1053409,0.00033023,7]
[422089661,1778563842000,-200.0,0.00033022,7]
[422089660,1778563842000,-151.0,0.00033022,7]
[422089662,1778563842000,-151.0,0.00033022,7]
[422089663,1778563842000,-151.0,0.00033022,7]
[422089664,1778563842000,-151.0,0.00033022,7]
[422089656,1778563842000,-500.0,0.00033022,7]
[422089668,1778563842000,-4.30313257,0.00033023,7]
[422089692,1778563843000,-423.57087373,0.0002611,2]
[422089693,1778563843000,-39548.50084933,0.00033173,6]
[422089694,1778563843000,-153504.53431262,0.00033173,6]
[422089695,1778563843000,-120121.1066098,0.00033173,2]
[422089696,1778563843000,-661.00056228,0.00033173,2]
[422089691,1778563843000,-500.0,0.00025836,2]
[422089758,1778563846000,-0.24811612,0.00033173,2]
[422089757,1778563846000,-3210.95575394,0.00033173,2]
[422089769,1778563932000,171.0,0.0001841,2]
[422089768,1778563932000,171.0,0.00016438,2]
[422089767,1778563932000,171.0,0.00020381,2]
[422089770,1778563999000,-171.0,0.00022353,2]
[422089771,1778564166000,-171.0,0.00024324,2]
[422089773,1778564167000,-171.0,0.00024397,2]
[422089772,1778564167000,-171.0,0.00024397,2]
[422089775,1778564168000,-10.0,0.00024657,2]
[422089776,1778564168000,-171.0,0.00024658,2]
[422089774,1778564168000,-161.0,0.00024397,2]
[422089780,1778564169000,-171.0,0.00024658,2]
[422089779,1778564169000,-171.0,0.00024658,2]
[422089778,1778564169000,-171.0,0.00024658,2]
[422089777,1778564169000,-171.0,0.00024658,2]
[422089784,1778564170000,-21.0,0.00024657,2]
[422089783,1778564170000,150.0,0.0002058,2]
[422089782,1778564170000,-21.0,0.00024657,2]
[422089781,1778564170000,150.0,0.0002058,2]
[422089785,1778564171000,-171.0,0.00024657,2]
[422089787,1778564171000,-171.0,0.00024657,2]
[422089786,1778564171000,-171.0,0.00024657,2]
[422089788,1778564221000,900.48755134,0.00027397,120]
[422089790,1778564232000,151.0,0.00020381,2]
[422089789,1778564232000,151.0,0.0001841,2]
[422089791,1778564407000,10000.0,0.00027397,120]
[422089793,1778564479000,-151.0,0.00022353,2]
[422089794,1778564647000,-4613.0,0.00023,30]
[422089809,1778564648000,-500.0,0.00025004,2]
[422089807,1778564648000,-315.48565039,0.00025004,2]
[422089806,1778564648000,-332.93963537,0.00024998,2]
[422089802,1778564648000,-3362.71,0.00024658,2]
[422089803,1778564648000,-155.99668748,0.00024995,2]
[422089804,1778564648000,-1094.29331252,0.00024998,2]
[422089800,1778564648000,-2497.0,0.00024658,2]
[422089798,1778564648000,-300.0,0.00024657,2]
[422089805,1778564648000,-462.60653698,0.00024998,2]
[422089799,1778564648000,-645.0,0.00024657,2]
[422089797,1778564648000,-503.0,0.00024397,2]
[422089795,1778564648000,-151.0,0.00024324,2]
[422089801,1778564648000,-4613.0,0.00024658,2]
[422089808,1778564648000,-500.0,0.00025004,2]
[422089796,1778564648000,-517.0,0.00024397,2]
[422089811,1778564648000,-500.0,0.00025004,2]
[422089810,1778564648000,-571.63479345,0.00025004,2]
[422089825,1778564648000,-242.58016161,0.00025004,2]
[422089824,1778564648000,-500.0,0.00025004,2]
[422089822,1778564648000,-218.8044511,0.00025004,2]
[422089823,1778564648000,-500.0,0.00025004,2]
[422089819,1778564648000,-500.0,0.00025004,2]
[422089820,1778564648000,-500.0,0.00025004,2]
[422089821,1778564648000,-500.0,0.00025004,2]
[422089818,1778564648000,-612.26877207,0.00025004,2]
[422089812,1778564648000,-345.53790513,0.00025004,2]
[422089814,1778564648000,-583.7858674,0.00025004,2]
[422089813,1778564648000,-501.00961128,0.00025004,2]
[422089817,1778564648000,-500.0,0.00025004,2]
[422089815,1778564648000,-39.34661522,0.00025004,2]
[422089816,1778564648000,-500.0,0.00025004,2]
[422089827,1778564649000,-500.0,0.00025004,2]
[422089829,1778564649000,-500.0,0.00025004,2]
[422089830,1778564649000,-239.25490529,0.00025004,2]
[422089826,1778564649000,-257.41983839,0.00025004,2]
[422089837,1778564649000,-2500.0,0.00024905,2]
[422089831,1778564649000,-500.0,0.00025004,2]
[422089833,1778564649000,-500.0,0.00025004,2]
[422089834,1778564649000,-500.0,0.00025004,2]
[422089835,1778564649000,-500.0,0.00025004,2]
[422089836,1778564649000,-338.8854912,0.00025004,2]
[422089832,1778564649000,-277.43976512,0.00025004,2]
[422089828,1778564649000,-500.0,0.00025004,2]
[422089839,1778564649000,-500.0,0.00025004,2]
[422089838,1778564649000,-161.1145088,0.00025004,2]
[422089851,1778564649000,-150.14435541,0.00025004,2]
[422089840,1778564649000,-500.0,0.00025004,2]
[422089850,1778564649000,-499.99999999,0.00025004,2]
[422089847,1778564649000,-500.0,0.00025004,2]
[422089846,1778564649000,-500.0,0.00025004,2]
[422089849,1778564649000,-500.0,0.00025004,2]
[422089845,1778564649000,-500.0,0.00025004,2]
[422089844,1778564649000,-500.0,0.00025004,2]
[422089842,1778564649000,-451.8854912,0.00025004,2]
[422089841,1778564649000,-500.0,0.00025004,2]
[422089848,1778564649000,-500.0,0.00025004,2]
[422089843,1778564649000,-48.1145088,0.00025004,2]
[422089854,1778564650000,-500.0,0.00024824,30]
[422089852,1778564650000,-753.80423212,0.00024998,2]
[422089857,1778564650000,-500.0,0.00024824,30]
[422089853,1778564650000,-500.0,0.00024824,30]
[422089855,1778564650000,-500.0,0.00024824,30]
[422089858,1778564650000,-500.0,0.00024824,30]
[422089856,1778564650000,-500.0,0.00024824,30]
[422089860,1778564650000,-506.44330256,0.00024824,30]
[422089861,1778564650000,-154.71788994,0.00024998,2]
[422089864,1778564650000,-150.056,0.00025003,8]
[422089862,1778564650000,-436.11646717,0.00025003,8]
[422089863,1778564650000,-645.17253283,0.00025003,8]
[422089859,1778564650000,-515.72234033,0.00024824,30]
[422089865,1778564722000,-300.0,0.00024657,2]
[422089869,1778564829000,-86.0,0.00024658,2]
[422089868,1778564829000,-214.0,0.00024397,2]
[422089867,1778564829000,-300.0,0.00024397,2]
[422089866,1778564829000,152.53,0.00022948,2]
[422089870,1778564830000,4847.48,0.00023,30]
[422089873,1778564830000,5000.01,0.00023,30]
[422089872,1778564830000,5000.01,0.00023,30]
[422089871,1778564830000,5000.01,0.00023,30]
[422089875,1778564830000,5000.01,0.00023,30]
[422089874,1778564830000,5000.01,0.00023,30]
[422089877,1778564830000,-300.0,0.00023,30]
[422089878,1778564830000,3894.95185261,0.00025243,120]
[422089876,1778564830000,-300.0,0.00023,30]
[422089884,1778564831000,-3693.3071344,0.00023,30]
[422089883,1778564831000,-6306.7028656,0.00023,30]
[422089881,1778564831000,-300.0,0.00022999,2]
[422089882,1778564831000,-9306.2971344,0.00023,30]
[422089880,1778564831000,-393.7128656,0.00022347,2]
[422089879,1778564831000,-300.0,0.00022999,2]
[422089893,1778564832000,-150.0,0.00023696,2]
[422089891,1778564832000,-150.0,0.00023696,2]
[422089890,1778564832000,-150.0,0.00023696,2]
[422089889,1778564832000,-174.01032977,0.00023696,2]
[422089885,1778564832000,-1158.3828656,0.00023,30]
[422089886,1778564832000,-150.0,0.00023696,2]
[422089892,1778564832000,-150.0,0.00023696,2]
[422089887,1778564832000,-151.55291946,0.00023696,2]
[422089888,1778564832000,-150.0,0.00023696,2]
[422089894,1778564832000,-150.0,0.00023816,4]